bitfinex/quotes_ETHUSD_20250923
["timestamp","ask_amount","ask_price","bid_price","bid_amount"]
[1758655649775,5.39595562,4173.7,4173.6,0.004]
[1758655649975,10.32563243,4173.7,4173.6,0.004]
[1758655650475,4.51303746,4173.7,4173.6,0.004]
[1758655650673,10.64803746,4173.7,4173.6,0.7105]
[1758655650931,10.64803746,4173.7,4173.6,0.2452]
[1758655651082,10.64803746,4173.7,4173.6,0.004]
[1758655651083,10.00267681,4173.7,4173.6,0.004]
[1758655651284,12.39863243,4173.7,4173.6,0.004]
[1758655652006,14.82476681,4173.7,4173.6,0.004]
[1758655652169,13.96413735,4173.7,4173.6,0.004]
[1758655653186,14.82540651,4173.7,4173.6,0.004]
[1758655654488,13.96678053,4173.7,4173.6,0.004]
[1758655655097,14.65928053,4173.7,4173.6,0.004]
[1758655655477,16.74222472,4173.7,4173.6,0.004]
[1758655655998,2.39624269,4173.2,4173.1,0.02]
[1758655656195,5.71155979,4173.2,4173.1,0.02]
[1758655656382,8.71155979,4173.2,4173.1,0.02]
[1758655656587,11.10780248,4173.2,4173.1,0.02]
[1758655657171,12.59230248,4173.2,4173.1,0.02]
[1758655658609,3.792,4173.1,4172.1,0.4853]
[1758655658812,0.64573741,4172.5,4172.4,0.7065]
[1758655658975,7.93231999,4172.5,4172.4,0.7065]
[1758655659185,10.32896468,4172.5,4172.4,0.7065]
[1758655659492,10.32896468,4172.5,4172.4,0.2412]
[1758655659810,10.32896468,4172.5,4172.4,0.7065]
[1758655659811,3.87031999,4172.5,4172.4,0.7065]
[1758655659974,10.00531999,4172.5,4172.4,0.7065]
[1758655660382,7.93231999,4172.5,4172.4,0.7065]
[1758655660681,10.00531999,4172.5,4172.4,0.7065]
[1758655660881,7.00531999,4172.5,4172.4,0.7065]
[1758655662029,7.00531999,4172.5,4172.4,0.2412]
[1758655662222,0.1192,4172.4,4172.1,0.2508]
[1758655662427,4.41532553,4172.3,4172.2,0.6916]
[1758655662906,4.41532553,4172.3,4172.2,3.08841702]
[1758655663100,0.35332553,4172.3,4172.2,3.08841702]
[1758655663633,4.19561685,4172.3,4172.2,0.6916]
[1758655663929,0.35399624,4172.3,4172.2,15.1916]
[1758655664136,4.41599624,4172.3,4172.2,17.58841702]
[1758655664335,4.41599624,4172.3,4172.2,15.1916]
[1758655664538,0.35399624,4172.3,4172.2,17.58841702]
[1758655664717,4.41599624,4172.3,4172.2,17.58841702]
[1758655665029,0.35399624,4172.3,4172.2,17.58841702]
[1758655665229,4.19561685,4172.3,4172.2,19.58895022]
[1758655665809,4.062,4172.3,4172.2,19.58895022]
[1758655666125,2.073,4172.9,4172.8,2.39647239]
[1758655666126,2.1922,4172.9,4172.8,2.39647239]
[1758655666291,4.53594199,4172.9,4172.8,2.39647239]
[1758655666492,4.53594199,4172.9,4172.8,3.08807239]
[1758655666726,4.53594199,4172.9,4172.8,17.58807239]
[1758655666930,4.19531628,4172.9,4172.8,20.03090999]
[1758655668129,0.13431628,4172.9,4172.8,20.03090999]
[1758655669535,0.13431628,4172.9,4172.8,17.58807239]
[1758655670105,4.061,4173.0,4172.9,2.39641496]
[1758655670306,4.19541304,4173.0,4172.9,3.08801496]
[1758655673845,4.19541304,4173.0,4172.9,17.58801496]
[1758655675104,4.19441304,4173.0,4172.9,17.58801496]
[1758655675306,0.13441304,4173.0,4172.9,19.59838923]
[1758655675505,0.1192,4173.3,4173.2,2.39624269]
[1758655675707,2.04267278,4173.3,4173.2,2.39624269]
[1758655675908,2.04267278,4173.3,4173.2,3.08784269]
[1758655676350,0.13447278,4173.3,4173.2,3.08784269]
[1758655676517,4.06,4173.6,4173.5,2.39607044]
[1758655676707,4.19445547,4173.6,4173.5,3.08767044]
[1758655679109,4.19445547,4173.6,4173.5,17.58767044]
[1758655680746,4.19445547,4173.6,4173.5,14.5]
[1758655680995,4.19445547,4173.6,4173.5,16.89607044]
[1758655683350,4.19345547,4173.6,4173.5,16.89607044]
[1758655683845,4.19345547,4173.6,4173.5,14.5]
[1758655684351,4.19445547,4173.6,4173.5,14.5]
[1758655684915,4.19445547,4173.6,4173.5,16.89607044]
[1758655685344,4.19445547,4173.6,4173.5,14.5]
[1758655687064,5.64343536,4173.6,4173.5,14.5]
[1758655687863,5.15653891,4173.6,4172.9,2.39640437]
[1758655688018,0.13445547,4173.5,4172.9,2.39640437]
[1758655688326,0.1192,4173.0,4172.9,2.39640437]
[1758655688539,4.31265547,4173.0,4172.9,2.39640437]
[1758655688743,4.31265547,4173.0,4172.9,16.89640437]
[1758655688942,4.31265547,4173.0,4172.9,16.89641496]
[1758655689336,4.31262212,4173.0,4172.9,17.12721496]
[1758655690046,4.31262212,4173.0,4172.9,17.58801496]
[1758655695172,4.31262212,4173.0,4172.9,17.12721496]
[1758655696735,0.13442212,4173.0,4172.9,19.61072927]
[1758655696939,0.13442212,4173.0,4172.9,19.72992927]
[1758655697561,3.919,4173.5,4173.4,2.39612785]
[1758655697770,4.05378476,4173.5,4173.4,10.12533253]
[1758655697972,0.13478476,4173.5,4173.4,10.84063253]
[1758655698138,0.13478476,4173.5,4173.4,12.58203582]
[1758655698353,0.001,4173.6,4173.5,2.39607044]
[1758655698573,0.13573547,4173.6,4173.5,3.13533114]
[1758655698981,0.001,4173.6,4173.5,3.13533114]
[1758655699879,0.001,4173.6,4173.5,7.19333114]
[1758655700073,0.001,4173.6,4173.5,7.69184601]
[1758655700481,0.001,4173.6,4173.5,8.48384601]
[1758655700667,0.001,4174.1,4174.0,9.02501383]
[1758655700971,0.001,4175.0,4174.5,2.39549646]
[1758655701174,0.001,4175.0,4174.5,9.16788183]
[1758655701383,0.001,4175.0,4174.5,14.42137235]
[1758655703063,0.001,4175.0,4174.5,28.92137235]
[1758655707476,0.001,4175.0,4174.8,2.39532432]
[1758655707697,0.001,4175.0,4174.8,16.22370797]
[1758655708010,0.001,4175.0,4174.8,17.35192356]
[1758655708209,0.001,4175.0,4174.8,31.85192356]
[1758655708618,0.001,4175.5,4175.4,2.39498012]
[1758655708830,0.001,4175.5,4175.4,13.10416033]
[1758655709117,0.001,4175.5,4175.4,17.58751053]
[1758655709293,0.021,4175.9,4175.4,17.58751053]
[1758655709294,0.021,4175.9,4175.5,3.0]
[1758655709493,0.021,4175.9,4175.8,12.14318111]
[1758655709683,0.021,4175.9,4175.8,16.19918111]
[1758655710028,0.021,4175.9,4175.8,16.91448111]
[1758655710585,0.021,4175.9,4175.8,31.41448111]
[1758655710780,0.021,4175.9,4175.8,25.18852627]
[1758655710986,0.021,4175.9,4175.8,31.81775668]
[1758655711211,0.021,4175.9,4175.8,31.10245668]
[1758655711426,0.021,4175.9,4175.8,31.35135668]
[1758655713354,0.021,4175.9,4175.8,31.81775668]
[1758655715362,0.021,4175.9,4175.8,25.18852627]
[1758655715518,0.021,4175.9,4175.8,31.35135668]
[1758655717846,0.021,4175.9,4175.8,31.10245668]
[1758655718150,0.021,4175.9,4175.8,31.35135668]
[1758655718695,0.021,4175.9,4175.8,18.02247557]
[1758655718840,0.7065,4175.9,4175.8,14.5]
[1758655720178,0.021,4175.9,4175.8,14.5]
[1758655720632,0.7065,4175.9,4175.8,14.5]
[1758655721032,0.1192,4175.8,4175.1,6.62923041]
[1758655721281,0.1192,4175.4,4175.1,9.02438074]
[1758655721438,0.365,4175.4,4175.2,14.5]
[1758655721865,0.797,4175.4,4175.2,14.5]
[1758655722645,0.1192,4175.4,4175.3,5.41898785]
[1758655722847,0.1192,4175.4,4175.3,5.39503748]
[1758655723277,0.15475855,4175.9,4175.6,2.39484573]
[1758655723441,0.021,4175.9,4175.8,6.62923041]
[1758655723636,0.021,4175.9,4175.8,23.52398111]
[1758655723857,0.021,4175.9,4175.8,23.75698111]
[1758655725075,0.021,4175.9,4175.8,24.20338111]
[1758655725284,0.021,4175.9,4175.8,29.64621871]
[1758655726279,0.021,4175.9,4175.8,29.41321871]
[1758655726479,0.021,4175.9,4175.8,28.96681871]
[1758655726775,0.021,4175.9,4175.8,29.19981871]
[1758655727300,0.021,4175.9,4175.8,29.64621871]
[1758655729964,0.021,4175.9,4175.8,28.96681871]
[1758655730161,0.021,4175.9,4175.8,17.5]
[1758655730361,0.15535813,4175.9,4175.8,17.5]
[1758655730563,0.40115813,4175.9,4175.8,19.8947507]
[1758655731085,0.83315813,4175.9,4175.8,19.8947507]
[1758655731294,0.83315813,4175.9,4175.8,14.5]
[1758655731599,0.83315813,4175.9,4175.8,16.8947507]
[1758655731895,0.40115813,4175.9,4175.8,16.8947507]
[1758655732295,0.15535813,4175.9,4175.8,16.8947507]
[1758655735400,0.15535813,4175.9,4175.8,14.5]
[1758655735565,0.40115813,4175.9,4175.8,14.5]
[1758655735771,0.15535813,4175.9,4175.8,14.5]
[1758655735981,0.15535813,4175.9,4175.8,16.8947507]
[1758655736469,0.15535813,4175.9,4175.8,17.1277507]
[1758655737798,0.15535813,4175.9,4175.8,16.8947507]
[1758655738006,0.40115813,4175.9,4175.3,0.3522]
[1758655738163,0.40115813,4175.9,4174.6,0.237]
[1758655738164,0.38015813,4175.8,4174.6,0.237]
[1758655738370,0.46816151,4175.7,4175.2,2.39505666]
[1758655738682,0.81215813,4175.6,4175.1,2.39513371]
[1758655738878,0.13435813,4175.5,4175.4,9.02421053]
[1758655739203,0.021,4175.9,4175.8,2.3947507]
[1758655739387,0.15557236,4175.9,4175.8,9.02398111]
[1758655739591,0.15557236,4175.9,4175.8,9.70338111]
[1758655739788,0.15557186,4175.9,4175.8,9.70338111]
[1758655740470,0.15557186,4175.9,4175.8,11.31880166]
[1758655741599,0.001,4176.4,4176.3,2.39446399]
[1758655742121,0.001,4176.4,4176.3,3.07386399]
[1758655742323,0.001,4176.4,4176.3,16.89446399]
[1758655742507,0.001,4176.4,4176.3,17.57386399]
[1758655742833,0.001,4176.4,4176.3,19.66950324]
[1758655743241,0.001,4176.4,4176.3,26.72050324]
[1758655748912,0.001,4176.4,4176.3,26.83970324]
[1758655751312,0.001,4176.4,4176.3,26.16030324]
[1758655751627,0.001,4176.4,4176.3,26.83170324]
[1758655754011,0.001,4176.4,4176.3,26.16030324]
[1758655754212,0.001,4176.4,4176.3,26.39980324]
[1758655754638,0.001,4176.4,4176.3,26.87280324]
[1758655757857,0.001,4176.4,4176.3,26.16030324]
[1758655758174,0.001,4176.4,4176.3,26.39980324]
[1758655758376,0.001,4176.4,4176.3,26.16030324]
[1758655759672,0.001,4176.4,4176.3,26.39980324]
[1758655759990,0.001,4176.4,4176.3,26.87280324]
[1758655760545,0.001,4176.4,4176.3,26.39980324]
[1758655761065,0.001,4176.4,4176.3,32.78753365]
[1758655762666,0.001,4176.4,4176.3,26.15830324]
[1758655763364,0.001,4176.4,4176.3,34.58555965]
[1758655763564,0.001,4176.4,4176.3,30.53655965]
[1758655763780,0.001,4176.4,4176.3,34.58555965]
[1758655765476,1e-08,4176.8,4176.7,2.39423468]
[1758655765686,1e-08,4176.8,4176.7,17.18093343]
[1758655765984,1e-08,4176.8,4176.7,17.98869109]
[1758655766185,1e-08,4176.8,4176.7,32.48869109]
[1758655767389,1e-08,4176.8,4176.7,31.77619109]
[1758655767591,1e-08,4176.8,4176.7,33.39161164]
[1758655768495,1e-08,4176.8,4176.7,33.63111164]
[1758655769467,1e-08,4176.8,4176.7,33.98491164]
[1758655770186,1e-08,4176.8,4176.7,33.51191164]
[1758655772701,1e-08,4176.8,4176.7,33.98491164]
[1758655773196,0.13471843,4176.8,4176.7,33.98491164]
[1758655774200,0.13471843,4176.8,4176.7,25.55765523]
[1758655774604,0.13471843,4176.8,4176.7,25.79715523]
[1758655774778,0.13471843,4176.8,4176.7,26.27015523]
[1758655775667,1e-08,4176.8,4176.7,26.27015523]
[1758655776095,1e-08,4176.8,4176.7,25.79715523]
[1758655779380,1e-08,4176.8,4176.7,25.91635523]
[1758655780612,1e-08,4176.8,4176.7,26.38935523]
[1758655780787,1e-08,4176.8,4176.7,25.91635523]
[1758655781110,1e-08,4176.8,4176.7,25.67685523]
[1758655782116,1e-08,4176.8,4176.7,25.92195523]
[1758655783812,1e-08,4176.8,4176.7,26.38575523]
[1758655784317,1e-08,4176.8,4176.7,25.67685523]
[1758655786716,1e-08,4176.8,4176.7,25.92195523]
[1758655786885,1e-08,4176.8,4176.7,26.38575523]
[1758655787388,1e-08,4176.8,4176.7,25.67685523]
[1758655787590,1e-08,4176.8,4176.7,26.38575523]
[1758655789030,1e-08,4176.8,4176.7,25.67685523]
[1758655789885,1e-08,4176.8,4176.7,25.92195523]
[1758655790224,1e-08,4176.8,4176.7,21.87395523]
[1758655790391,1e-08,4176.8,4176.7,25.91895523]
[1758655790732,1e-08,4176.8,4176.7,34.09751164]
[1758655791081,1e-08,4176.8,4176.7,33.38861164]
[1758655792235,1e-08,4176.8,4176.7,20.01343468]
[1758655792554,0.82472686,4176.8,4176.7,24.05843468]
[1758655793204,0.82472686,4176.8,4176.7,24.77814306]
[1758655793624,0.36202686,4176.8,4176.7,20.73314306]
[1758655793824,0.82472686,4176.8,4176.7,24.05843468]
[1758655793997,0.13472686,4176.8,4176.7,24.05843468]
[1758655795246,0.82472686,4176.8,4176.7,24.28673468]
[1758655795539,0.13472686,4176.8,4176.7,24.28673468]
[1758655800413,0.13472686,4176.8,4176.7,32.00149109]
[1758655800734,0.001,4176.9,4176.8,6.18617736]
[1758655800931,0.001,4177.5,4177.3,13.9006472]
[1758655801248,0.001,4177.5,4177.3,17.9446472]
[1758655801391,0.001,4177.5,4177.3,33.1535472]
[1758655801596,0.001,4177.5,4177.3,33.2727472]
[1758655801797,0.001,4177.5,4177.3,35.09280277]
[1758655804048,0.001,4177.5,4177.3,21.83314636]
[1758655804334,0.001,4177.5,4177.3,17.01309079]
[1758655804510,0.001,4177.5,4177.3,21.05609079]
[1758655807634,0.691,4177.4,4177.3,17.01309079]
[1758655807795,0.691,4177.4,4177.3,21.05609079]
[1758655808229,0.001,4177.4,4177.3,21.05609079]
[1758655808500,0.001,4177.4,4177.3,21.30119079]
[1758655808933,0.001,4177.4,4177.3,21.05609079]
[1758655809235,0.001,4177.4,4177.3,23.49892839]
[1758655809426,0.001,4177.4,4177.3,35.7145848]
[1758655810298,0.001,4177.4,4177.3,35.7175848]
[1758655810640,0.001,4177.4,4177.3,35.2537848]
[1758655811121,0.001,4177.4,4177.3,35.7175848]
[1758655812967,0.001,4177.9,4177.8,0.792]
[1758655813261,0.001,4177.9,4177.8,17.96629673]
[1758655813421,0.001,4177.9,4177.8,18.06156069]
[1758655813623,0.001,4177.9,4177.8,33.26226069]
[1758655813824,0.6822,4177.9,4177.8,19.89360428]
[1758655814063,0.001,4177.9,4177.8,19.89360428]
[1758655814223,0.001,4177.9,4177.8,23.36944188]
[1758655814430,0.001,4177.9,4177.8,23.82914188]
[1758655814842,0.51702217,4179.7,4177.8,23.82914188]
[1758655815041,0.13433792,4179.1,4178.3,13.90007426]
[1758655815359,0.2257,4179.5,4178.3,17.94207426]
[1758655815528,0.13427761,4179.4,4178.3,34.96282983]
[1758655815723,0.13427761,4179.3,4178.3,34.96282983]
[1758655815961,0.6812,4179.6,4178.3,34.96282983]
[1758655816169,0.13427248,4179.5,4178.3,34.96282983]
[1758655816325,0.13427248,4179.4,4178.3,34.96282983]
[1758655816659,0.001,4179.7,4178.3,25.75437342]
[1758655816660,0.2257,4179.0,4178.3,25.75437342]
[1758655816864,0.6812,4178.9,4178.3,25.75437342]
[1758655817221,0.2257,4178.6,4178.3,21.71337342]
[1758655817426,0.6822,4178.4,4178.3,23.93431785]
[1758655818839,0.81636254,4178.4,4178.3,14.5]
[1758655821357,0.81636254,4178.4,4177.8,2.39359313]
[1758655821574,0.81536254,4178.3,4177.6,2.39366808]
[1758655821728,0.81536254,4178.2,4177.6,16.89366808]
[1758655821928,0.81536254,4178.1,4177.6,16.89366808]
[1758655822233,0.001,4178.4,4177.6,14.5]
[1758655822234,0.81536254,4178.0,4177.6,14.5]
[1758655822451,0.81536254,4177.9,4177.6,14.5]
[1758655822660,0.81536254,4177.8,4177.6,14.5]
[1758655822870,0.6812,4177.7,4177.6,14.5]
[1758655823138,0.81544158,4177.7,4177.6,14.5]
[1758655823750,0.81544158,4177.7,4177.6,14.6192]
[1758655824296,0.81544158,4177.7,4177.6,14.5]
[1758655824492,3.20911928,4177.7,4177.3,0.1232]
[1758655824643,3.20911928,4177.7,4177.3,0.004]
[1758655824644,1.29006007,4177.6,4177.3,0.004]
[1758655824837,0.35804814,4177.5,4177.3,0.004]
[1758655825043,0.13424158,4177.4,4177.3,0.004]
[1758655825269,0.35804814,4177.4,4177.3,0.004]
[1758655825452,1.03924814,4177.4,4177.3,0.004]
[1758655825654,0.81544158,4177.4,4177.3,0.004]
[1758655825872,1.2414736,4177.4,4177.3,0.004]
[1758655827087,3.63530708,4177.4,4177.3,0.004]
[1758655827382,1.2414736,4177.4,4177.3,0.004]
[1758655827555,1.46517975,4177.4,4177.3,0.004]
[1758655827762,0.81544158,4177.4,4177.3,0.004]
[1758655827955,7.04664158,4177.4,4177.3,0.004]
[1758655831091,9.44047506,4177.4,4177.3,0.004]
[1758655831249,9.66407814,4177.4,4177.3,0.004]
[1758655831443,10.17927399,4177.4,4177.3,0.004]
[1758655831743,11.44617355,4177.4,4177.3,0.004]
[1758655831947,15.23817355,4177.4,4177.3,0.004]
[1758655834062,15.23817355,4177.4,4177.3,1e-08]
[1758655834383,6.18594809,4177.2,4177.1,0.004]
[1758655834549,7.70212608,4177.2,4177.1,0.004]
[1758655834749,10.82616368,4177.2,4177.1,0.004]
[1758655835174,10.1830262,4177.2,4177.1,0.004]
[1758655837205,17.3730262,4177.2,4177.1,0.004]
[1758655839411,3.18617736,4176.8,4176.7,0.004]
[1758655839598,7.58602202,4176.8,4176.7,0.004]
[1758655839800,9.56523456,4176.8,4176.7,0.004]
[1758655840002,9.66124312,4176.8,4176.7,0.004]
[1758655840908,4.93804312,4176.8,4176.7,0.004]
[1758655841108,11.05104312,4176.8,4176.7,0.004]
[1758655841300,10.82744004,4176.8,4176.7,0.004]
[1758655841683,10.03544004,4176.8,4176.7,0.004]
[1758655841886,6.50325412,4176.8,4176.7,0.6972]
[1758655842212,9.24724158,4176.8,4176.7,0.6972]
[1758655842589,9.36644158,4176.8,4176.7,0.2503]
[1758655842796,9.36644158,4176.8,4176.7,0.6972]
[1758655843187,0.13424158,4176.8,4176.7,0.6972]
[1758655843442,4.042,4176.8,4176.7,0.6972]
[1758655843601,2.071,4177.2,4176.7,0.72114234]
[1758655843798,2.071,4177.2,4176.8,0.4469]
[1758655843799,4.042,4177.1,4176.8,0.4469]
[1758655844010,4.042,4177.1,4176.9,14.7463]
[1758655844209,4.042,4177.1,4177.0,0.6932]
[1758655844792,4.042,4177.1,4177.0,15.1932]
[1758655845338,6.43600541,4177.1,4177.0,14.5]
[1758655845496,5.2777119,4177.1,4177.0,14.5]
[1758655845897,5.2777119,4177.1,4177.0,14.7463]
[1758655846209,0.13369839,4177.1,4177.0,15.1932]
[1758655846513,0.1192,4177.2,4177.0,15.1932]
[1758655846704,0.35338527,4177.8,4177.0,14.5]
[1758655846705,4.042,4177.1,4177.0,14.5]
[1758655846905,4.17569839,4177.1,4177.0,14.5]
[1758655847312,4.17569839,4177.1,4177.0,15.1932]
[1758655847933,0.13369839,4177.1,4177.0,17.58726272]
[1758655848093,0.13390634,4177.4,4177.3,2.39389079]
[1758655848298,0.13390634,4177.4,4177.3,3.08709079]
[1758655848494,0.13390634,4177.6,4177.3,0.8363389]
[1758655848725,4.041,4177.7,4177.3,0.8363389]
[1758655848726,4.041,4177.7,4177.4,0.6932]
[1758655849028,0.13399257,4177.6,4177.5,0.6932]
[1758655849231,0.55149183,4177.6,4177.0,14.5]
[1758655849431,0.81309257,4177.5,4177.0,14.5]
[1758655849633,0.1192,4177.2,4177.0,14.5]
[1758655849816,4.17499257,4177.1,4177.0,14.5]
[1758655851413,4.17499257,4177.1,4176.7,0.2503]
[1758655851614,0.13399257,4177.0,4176.8,0.6932]
[1758655851821,0.13399257,4176.9,4176.8,14.9469]
[1758655852296,0.13399257,4176.9,4176.8,15.1932]
[1758655853637,0.13399257,4176.9,4176.8,17.58737736]
[1758655853797,0.13399257,4176.9,4176.8,19.586341]
[1758655854631,0.13399257,4176.9,4176.8,17.58737736]
[1758655855132,0.13399257,4176.9,4176.8,15.1932]
[1758655855935,0.13399257,4176.9,4176.8,17.58737736]
[1758655859321,0.13399257,4176.9,4176.8,14.5]
[1758655859745,0.13399257,4176.9,4176.8,14.7463]
[1758655859913,0.13399257,4176.9,4176.8,14.5]
[1758655860114,0.13399257,4176.9,4176.8,15.1932]
[1758655860333,0.13399257,4176.9,4176.8,14.5]
[1758655860532,0.13399257,4176.9,4176.8,14.7463]
[1758655860937,0.13399257,4176.9,4176.8,15.1932]
[1758655861242,0.13399257,4176.9,4176.8,14.7463]
[1758655861433,0.13399257,4176.9,4176.8,17.58737736]
[1758655861909,0.13428324,4176.9,4176.8,15.1932]
[1758655862468,0.13428324,4176.9,4176.8,14.5]
[1758655862743,0.13428324,4176.9,4176.8,17.58737736]
[1758655863448,4.17428324,4176.9,4176.8,17.59137736]
[1758655863747,4.17428324,4176.9,4176.8,15.1972]
[1758655864049,4.17428324,4176.9,4176.8,17.59137736]
[1758655865152,4.17428324,4176.9,4176.8,14.504]
[1758655866013,4.91103819,4176.9,4176.8,14.504]
[1758655866216,11.20479536,4176.9,4176.8,0.004]
[1758655866515,11.72075067,4176.9,4176.8,0.004]
[1758655866851,12.51275067,4176.9,4176.8,0.004]
[1758655867621,13.15588815,4176.9,4176.8,0.004]
[1758655868020,13.3737331,4176.9,4176.8,0.004]
[1758655868234,6.30537736,4176.8,4176.7,0.004]
[1758655868532,6.30537736,4176.8,4176.7,1e-08]
[1758655868533,9.42661383,4176.8,4176.7,1e-08]
[1758655868719,10.10571383,4176.8,4176.7,1e-08]
[1758655868919,13.92318747,4176.8,4176.7,1e-08]
[1758655869252,13.92343677,4176.8,4176.7,1e-08]
[1758655869438,12.63196313,4176.8,4176.7,1e-08]
[1758655870019,8.71223468,4176.7,4176.6,1e-08]
[1758655870220,12.99377747,4176.7,4176.6,1e-08]
[1758655870524,9.85540383,4176.7,4176.6,1e-08]
[1758655871031,15.96640383,4176.7,4176.6,1e-08]
[1758655871968,13.89540383,4176.7,4176.6,1e-08]
[1758655872169,15.96640383,4176.7,4176.6,1e-08]
[1758655872464,16.82531813,4176.7,4176.6,1e-08]
[1758655873297,15.96640383,4176.7,4176.6,1e-08]
[1758655874106,16.82531813,4176.7,4176.6,1e-08]
[1758655875192,15.96640383,4176.7,4176.6,1e-08]
[1758655876088,9.85540383,4176.7,4176.6,1e-08]
[1758655876287,16.61190186,4176.7,4176.6,1e-08]
[1758655877009,9.85540383,4176.7,4176.6,1e-08]
[1758655877198,16.61179462,4176.7,4176.6,1e-08]
[1758655877925,6.18640666,4176.4,4175.5,0.004]
[1758655878240,6.18646399,4176.3,4175.5,0.004]
[1758655878531,7.76458897,4176.3,4175.5,0.004]
[1758655879030,7.86062381,4176.3,4175.5,0.004]
[1758655879230,14.03292975,4176.3,4175.6,0.2362]
[1758655879532,13.88838309,4176.3,4175.6,0.2362]
[1758655880093,7.77499368,4176.3,4175.6,0.2362]
[1758655880294,13.66886522,4176.3,4175.5,0.004]
[1758655880495,13.66886522,4176.3,4176.0,0.2362]
[1758655880726,13.66886522,4176.3,4175.7,0.2362]
[1758655880925,13.66886522,4176.3,4175.6,0.4563]
[1758655881130,14.37596522,4176.3,4175.5,0.004]
[1758655882427,7.55586522,4176.3,4175.5,0.004]
[1758655882630,13.66886522,4176.3,4176.0,0.2362]
[1758655883040,13.66886522,4176.3,4175.7,0.6925]
[1758655883245,13.66886522,4176.3,4176.1,0.004]
[1758655884578,7.55586522,4176.3,4176.1,0.004]
[1758655884719,13.66886522,4176.3,4176.2,0.2402]
[1758655884924,13.66742694,4176.3,4176.2,0.2402]
[1758655885752,13.66742694,4176.3,4176.2,0.004]
[1758655891231,13.66742694,4176.3,4176.2,0.6965]
[1758655891974,2.94119729,4176.3,4176.2,0.6965]
[1758655892210,0.35468026,4176.3,4176.2,0.6965]
[1758655892376,4.39568026,4176.3,4176.2,0.6965]
[1758655893592,4.1749935,4176.3,4176.2,0.6965]
[1758655894087,0.1339935,4176.3,4176.2,0.6965]
[1758655894288,2.9289935,4176.3,4176.2,3.09102133]
[1758655894509,2.9289935,4176.3,4176.2,18.25918482]
[1758655894722,4.1739935,4176.3,4176.2,15.86466349]
[1758655894924,4.39426956,4176.3,4176.2,0.2402]
[1758655895196,4.39426956,4176.3,4176.2,0.004]
[1758655895197,7.58073355,4176.3,4176.2,0.004]
[1758655895412,7.58073355,4176.3,4176.2,0.6965]
[1758655895413,5.70278849,4176.3,4176.2,0.6965]
[1758655895617,8.09725248,4176.3,4176.2,0.6965]
[1758655895818,9.14641283,4176.3,4176.2,0.6965]
[1758655896037,9.14641283,4176.3,4176.2,0.2402]
[1758655896360,12.14641283,4176.3,4176.2,0.2402]
[1758655896910,12.14641283,4176.3,4176.2,0.004]
[1758655898027,12.78972515,4176.3,4176.2,0.004]
[1758655898666,12.14641283,4176.3,4176.2,0.004]
[1758655898875,13.71137029,4176.3,4176.2,0.004]
[1758655899868,9.20647029,4176.3,4176.2,0.004]
[1758655900068,15.31847029,4176.3,4176.2,0.004]
[1758655900259,15.07627029,4176.3,4176.2,0.004]
[1758655900457,8.10641283,4176.3,4176.2,0.004]
[1758655900632,14.21841283,4176.3,4176.2,0.004]
[1758655900967,14.21941283,4176.3,4176.2,0.004]
[1758655901575,15.07727029,4176.3,4176.2,0.004]
[1758655902075,14.21941283,4176.3,4176.2,0.6834]
[1758655902434,14.21941283,4176.3,4176.2,0.2417]
[1758655902635,14.86545342,4176.3,4176.2,0.004]
[1758655902864,14.21941283,4176.3,4176.2,0.004]
[1758655904285,14.89231283,4176.3,4176.2,0.004]
[1758655904669,15.75017029,4176.3,4176.2,0.004]
[1758655905414,14.89231283,4176.3,4176.2,0.004]
[1758655906263,14.46421283,4176.3,4176.2,0.004]
[1758655906500,14.21941283,4176.3,4176.2,0.004]
[1758655907716,12.14741283,4176.3,4176.2,0.004]
[1758655907919,14.21941283,4176.3,4176.2,0.004]
[1758655908336,15.08080399,4176.3,4176.2,0.004]
[1758655910674,14.21941283,4176.3,4176.2,0.004]
[1758655911020,15.08094013,4176.3,4176.2,0.004]
[1758655912136,4.92094884,4176.3,4176.2,0.6834]
[1758655912322,6.98378849,4176.3,4176.2,0.6834]
[1758655912678,9.98378849,4176.3,4176.2,0.6834]
[1758655913519,12.37825248,4176.3,4176.2,0.6834]
[1758655913754,13.17025248,4176.3,4176.2,0.004]
[1758655916173,13.17025248,4176.3,4176.2,0.6834]
[1758655916867,4.66378849,4176.3,4176.2,0.6834]
[1758655917080,3.35526956,4176.3,4176.2,0.6834]
[1758655917370,9.46626956,4176.3,4176.2,0.6834]
[1758655917523,9.98278849,4176.3,4176.2,0.6834]
[1758655918543,9.46626956,4176.3,4176.2,0.6834]
[1758655919123,3.35526956,4176.3,4176.2,0.6834]
[1758655919322,3.35526956,4176.3,4176.2,3.38851382]
[1758655919323,0.35526956,4176.3,4176.2,3.38851382]
[1758655919649,4.39426956,4176.3,4176.2,0.99399249]
[1758655920227,4.39426956,4176.3,4176.2,3.38851382]
[1758655920428,4.39426956,4176.3,4176.2,0.99399249]
[1758655920824,4.39426956,4176.3,4176.2,0.6834]
[1758655922059,4.39426956,4176.3,4176.2,15.1834]
[1758655922936,4.1739935,4176.3,4176.2,15.1834]
[1758655923148,4.04,4176.3,4176.2,15.1834]
[1758655923567,4.39866278,4176.3,4176.2,15.1834]
[1758655924069,4.39866278,4176.3,4176.2,0.004]
[1758655924070,4.26415189,4176.3,4176.2,0.004]
[1758655924236,6.77781588,4176.3,4176.2,0.004]
[1758655924570,6.55366399,4176.3,4176.2,0.004]
[1758655925091,0.001,4176.3,4176.2,0.6834]
[1758655925237,4.04,4176.3,4176.2,0.6834]
[1758655925568,4.39875912,4176.3,4176.2,0.6834]
[1758655927973,0.35975912,4176.3,4176.2,0.6834]
[1758655928144,0.35975912,4176.3,4176.2,15.1834]
[1758655928337,4.17354603,4176.3,4176.2,17.19538063]
[1758655928532,4.39766041,4176.3,4176.2,15.1834]
[1758655929449,4.39766041,4176.3,4176.2,14.504]
[1758655929648,9.7921244,4176.3,4176.2,0.004]
[1758655929848,11.77340296,4176.3,4176.2,0.004]